Cogmind - Beta 14 @@@ ROGUE MODE // 2024.09.05 @ 21:58:16 Player: Buttons Result: Destroyed by ZV-JPH(R) with Subdweller Laser Performance ------------- Evolutions (0) 0 Regions Visited (2) 400 Robots Destroyed (27) 135 Value Destroyed (473) 473 Prototype IDs (2) 40 Alien Tech Used (0) 0 Bonus (8) 8 TOTAL SCORE: 1056 Bonus ------- High Alert Combat Kills 8 Cogmind --------- Core Integrity 0/250 Matter 300/300 Energy 150/150 System Corruption 0% Temperature Cool (6) Movement Walking (190) Ox1 Location -10/Subcaves Parts ------- > --- POWER (1) -------- Light Angular Momentum Engine > --- PROPULSION (2) --- Aluminum Leg Aluminum Leg > --- UTILITY (2) ------ Large Storage Unit Signal Interpreter > --- WEAPON (2) ------- Beam Cannon Subdweller Machine Gun > --- INVENTORY (15) --- Subdweller Power Source Aluminum Leg Carbon-fiber Leg Seismic Detector ECM Suite Light Armor Plating Scrap Shield Hacking Suite Small Laser Beamcaster Battle Rifle Subdweller Machine Gun Subdweller Machine Gun Subdweller Shrapnel Launcher Peak State ------------ > --- POWER ------------ Light Angular Momentum Engine > --- PROPULSION ------- Aluminum Leg Aluminum Leg > --- UTILITY ---------- Large Storage Unit Signal Interpreter > --- WEAPON ----------- Beam Cannon Subdweller Machine Gun > --- INVENTORY -------- Subdweller Power Source Aluminum Leg Carbon-fiber Leg Seismic Detector ECM Suite Light Armor Plating Scrap Shield Hacking Suite Small Laser Beamcaster Battle Rifle Subdweller Machine Gun Subdweller Machine Gun Subdweller Shrapnel Launcher [Rating: 15] Favorites ----------- Power Ion Engine Engine Ion Engine Propulsion Aluminum Leg Leg Aluminum Leg Utility Large Storage Unit Device Seismic Detector Storage Large Storage Unit Processor Signal Interpreter Protection Light Armor Plating Weapon Beam Cannon Energy Gun Small Laser Energy Cannon Beam Cannon Ballistic Gun Light Assault Rifle Build | -11 -10 -10 ------- Run | Yrd Mat Sub Slots Evolved . | . . . Power . | . . . Propulsion . | . . . Utility . | . . . Weapon . | . . . Parts Attached 28 | 7 17 4 Power 6 | 1 3 2 Engine 6 | 1 3 2 Core . | . . . Reactor . | . . . Propulsion 6 | 2 3 1 Treads . | . . . Leg 6 | 2 3 1 Wheel . | . . . Hover . | . . . Flight . | . . . Utility 7 | 2 5 . Device 2 | 2 . . Storage 1 | . 1 . Processor 1 | . 1 . Hackware . | . . . Protection 3 | . 3 . Artifact . | . . . Weapon 9 | 2 6 1 Energy Gun 3 | . 3 . Energy Cannon 1 | . 1 . Ballistic Gun 5 | 2 2 1 Ballistic Cannon . | . . . Launcher . | . . . Special Weapon . | . . . Impact Weapon . | . . . Slashing Weapon . | . . . Piercing Weapon . | . . . Special Melee Weapon . | . . . Unidentified Prototypes . | . . . Parts Lost 6 | . 4 2 Power 1 | . 1 . Propulsion 2 | . 1 1 Utility . | . . . Weapon 3 | . 2 1 Highest Loss Streak 4 | . 4 2 To Critical Strikes . | . . . Average Slot Usage (%) 98 | . 99 96 Engine 13 | . 13 14 Leg 27 | . 27 26 Device 7 | . 9 . Storage 10 | . 9 14 Processor 6 | . 5 14 Protection 2 | . 3 . Energy Gun 11 | . 12 2 Energy Cannon 10 | . 10 14 Ballistic Gun 5 | . 4 9 Peak Build Rating 15 | 9 9 15 Average Rating 8 | 6 7 11 On Entrance 5 | . 9 8 Naked Turns . | . . . Heaviest Build 36 | 8 30 36 Greatest Support 20 | 20 20 20 Greatest Overweight (x) 2 | . 1 2 Average Overweight (x) . | . . 1 Largest Inventory Capacity 15 | 5 15 15 Average Capacity 11 | 5 12 15 Most Carried 15 | 5 14 15 Average Carried 9 | 2 9 14 Final Capacity 15 | 5 15 15 Final Carried 15 | 5 14 15 Class Distribution -------------------- 82% | Scavenger-Mutant 17% | Mutant Dominant Class ---------------- Scavenger-Mutant | -10/Materials Scavenger-Mutant | -10/Subcaves Resources | -11 -10 -10 ----------- Run | Yrd Mat Sub Matter Collected 615 | 342 229 44 Remotely . | . . . Salvage Created 690 | 144 546 . Parts 57 | 13 44 . Haulers Intercepted . | . . . Recyclers Shooed 1 | . 1 . Parts Field Recycled . | . . . Retrieved Matter . | . . . Parts Self-Destructed 6 | . . 6 Prevented . | . . . Kills | -11 -10 -10 ------- Run | Yrd Mat Sub Combat Hostiles Destroyed 13 | 1 12 . Guns 11 | 1 10 . Cannons 1 | . 1 . AOE 1 | . 1 . Classes Destroyed 7 | 3 4 . Worker 3 | 1 2 . Tunneler 6 | 4 2 . Recycler 1 | . 1 . Operator 2 | . 2 . Watcher 2 | . 2 . Swarmer 6 | . 6 . Grunt 7 | 1 6 . Best Kill Streak 5 | 5 4 . Combat Bots Only 4 | 1 4 . Max Kills in Single Turn 1 | 1 1 . Gunslinging . | . . . Exploded 1 | . 1 . Melee . | . . . Uniques/NPCs Destroyed . | . . . Combat | -11 -10 -10 -------- Run | Yrd Mat Sub Hostile Shots Fired 104 | 3 84 17 Missed 23 | 2 18 3 Damage Taken 1059 | 11 715 333 Core 255 | . 109 146 Absorbed by Shields . | . . . Regen/Repaired (Parts) 53 | . 53 . Core Remaining (%) 100 | 100 . . Volleys Fired 99 | 18 78 3 Largest 2 | 2 2 2 Hottest 100 | 40 100 100 Shots Fired 178 | 36 136 6 Gun 141 | 36 102 3 Cannon 37 | . 34 3 Launcher . | . . . Special . | . . . Kinetic 85 | 36 47 2 Thermal 84 | . 80 4 Explosive . | . . . Electromagnetic 9 | . 9 . Robot Hit Streak 7 | 4 7 2 Robot Miss Streak 5 | 3 5 4 Penetration Max . | . . . Secondary Targets . | . . . Shots Hit Robots 95 | 18 74 3 Core Hits 40 | 8 31 1 Critical Kills . | . . . Critical Parts Destroyed 1 | 1 . . Critical Strikes 1 | 1 . . Destroy 1 | 1 . . Melee Attacks . | . . . Impact . | . . . Slashing . | . . . Piercing . | . . . Sneak Attacks . | . . . Combat Hostiles . | . . . Follow-up Attacks . | . . . Damage Inflicted 1338 | 188 1094 56 Guns 852 | 188 642 22 Cannons 318 | . 284 34 Explosions 168 | . 168 . Melee . | . . . Ramming . | . . . Kinetic 533 | 188 323 22 Thermal 637 | . 603 34 Explosive 168 | . 168 . Electromagnetic . | . . . Impact . | . . . Slashing . | . . . Piercing . | . . . Highest Corruption . | . . . Average Corruption . | . . . Corruption Purged . | . . . Corruption Blocked . | . . . Overload Shots . | . . . Overflow Damage 9 | . 9 . Projectiles 9 | . 9 . Explosions . | . . . Melee . | . . . Knockbacks . | . . . Impact . | . . . Kinetic . | . . . Secondary . | . . . Self-Inflicted Damage 52 | . 52 . Shots 1 | . 1 . Rammed . | . . . Targets Rammed . | . . . Kicked . | . . . Crushed . | . . . Highest Temperature 174 | . 174 . Average Temperature 46 | . 46 . Received Heat Transfer 303 | 6 264 33 Siege Activations . | . . . Robots Corrupted . | . . . Combat Hostiles . | . . . Parts Fried . | . . . Impact Corruptions . | . . . Robots Melted . | . . . Combat Hostiles . | . . . Parts Melted . | . . . Heat Transferred 1391 | . 1317 74 Parts Sabotaged . | . . . Parts Stolen . | . . . Parts Stripped . | . . . Power Chain Reactions . | . . . Alert | -11 -10 -10 ------- Run | Yrd Mat Sub Peak Influence 430 | 46 430 . Initial 29 | . 29 . Average 161 | 26 176 . Maximum Alert Level 2 | . 2 . Low Security (%) 53 | 100 47 . Level 1 45 | . 50 . Level 2 1 | . 1 . Level 3 . | . . . Level 4 . | . . . Level 5 . | . . . High Security . | . . . Max Security . | . . . Squads Dispatched 5 | . 5 . Investigation 1 | . 1 . Extermination . | . . . Reinforcement 4 | . 4 . Assault . | . . . Garrison . | . . . Intercept . | . . . Searches Triggered . | . . . Construction Impeded . | . . . Haulers Reinforced . | . . . Active Scanning Responses . | . . . Cargo Convoy Interrupts . | . . . Stealth | -11 -10 -10 --------- Run | Yrd Mat Sub Distress Signals 3 | . 3 . Communications Jammed . | . . . Distress Signals . | . . . Times Spotted 41 | 1 29 11 Peak Tracking Total 8 | 1 8 7 Tactical Retreats . | . . . Traps | -11 -10 -10 ------- Run | Yrd Mat Sub Traps Triggered 2 | . 1 1 Indirectly . | . . . Trap Hack Attempts . | . . . Triggered . | . . . Disarmed . | . . . Reprogrammed . | . . . Reused . | . . . Traps Extracted . | . . . Installed . | . . . Triggered . | . . . Machines | -11 -10 -10 ---------- Run | Yrd Mat Sub Machines Disabled 6 | . 6 . Max in Single Turn 5 | . 5 . Machines Repaired . | . . . Machines Dismantled . | . . . Machines Sabotaged . | . . . Overloaded Fab Kills . | . . . Hacking | -11 -10 -10 --------- Run | Yrd Mat Sub Machines Accessed 7 | . 7 . Terminals 5 | . 5 . Fabricators . | . . . Repair Stations 1 | . 1 . Recycling Units 1 | . 1 . Scanalyzers . | . . . Garrison Access . | . . . Total Hacks 20 | . 20 . Successful 14 | . 14 . Failed 6 | . 6 . Catastrophic . | . . . Database Lockouts . | . . . Manual 10 | . 10 . Terminals 16 | . 16 . Fabricators . | . . . Repair Stations 3 | . 3 . Recycling Units 1 | . 1 . Scanalyzers . | . . . Garrison Access . | . . . Terminal Hacks 4 | . 4 . Record 1 | . 1 . Prototype ID Bank 1 | . 1 . Terminal Index 1 | . 1 . Alert Level 1 | . 1 . Fabricator Hacks . | . . . Repair Station Hacks 2 | . 2 . Scan Component 1 | . 1 . Repair 1 | . 1 . Recycling Unit Hacks 1 | . 1 . Report Inventory 1 | . 1 . Scanalyzer . | . . . Garrison Access Hacks . | . . . Unauthorized Hacks 7 | . 7 . Terminals 7 | . 7 . Botnet 3 | . 3 . Skim 4 | . 4 . Fabricators . | . . . Repair Stations . | . . . Recycling Units . | . . . Scanalyzers . | . . . Garrison Access . | . . . Data Cores Recovered . | . . . Used . | . . . Hacking Detections 6 | . 6 . Full Trace Events 1 | . 1 . Feedback Events . | . . . Feedback Blocked . | . . . Robot Schematics Acquired . | . . . Robots Built . | . . . Authchips . | . . . Time . | . . . Total Robot Build Rating . | . . . Part Schematics Acquired . | . . . Parts Built . | . . . Authchips . | . . . Time . | . . . Total Part Build Rating . | . . . Parts Repaired 1 | . 1 . Time 13 | . 13 . Parts Recycled . | . . . Recycled Matter . | . . . Retrieved Matter . | . . . Retrieved Components . | . . . Parts Scanalyzed . | . . . Part Schematics Acquired . | . . . Parts Damaged . | . . . Bothacking | -11 -10 -10 ------------ Run | Yrd Mat Sub Used RIF Installer . | . . . Robots Hacked . | . . . Non-combat . | . . . Combat . | . . . Robot Hacks Applied . | . . . Relay Couplers Released . | . . . Fabnet Peak Effective % . | . . . Robots Rewired . | . . . Allies Hacked . | . . . Hacks Repelled . | . . . Allies | -11 -10 -10 -------- Run | Yrd Mat Sub Total Allies . | . . . Largest Group . | . . . Highest-Rated Group . | . . . Highest-Rated Ally . | . . . Total Orders . | . . . Ally Attacks . | . . . Total Damage . | . . . Kills . | . . . Allies Corrupted . | . . . Allies Melted . | . . . Intel | -11 -10 -10 ------- Run | Yrd Mat Sub Robot Analysis Total . | . . . Derelict Logs Recovered . | . . . Drone Launches . | . . . Drone Recoveries . | . . . Exploration | -11 -10 -10 ------------- Run | Yrd Mat Sub Turns Passed 2706 | 228 2039 439 Spaces Moved 1380 | 143 1030 207 Core 13 | 13 . . Treads . | . . . Legs 1367 | 130 1030 207 Wheels . | . . . Hover . | . . . Flight . | . . . Fastest Speed 50 | 50 120 190 Average Speed 164 | 113 165 194 Slowest Speed 260 | 120 190 260 Overloaded Moves . | . . . Propulsion Burnouts . | . . . Robots Hopped . | . . . Cave-ins Triggered . | . . . Exploration Rate (%) 43 | 7 100 24 Regions Visited 2 Branch Regions 1 Pre-discovered Areas . | . . . Known Exits Taken 1 | . 1 . Unknown Exits Taken 1 | 1 . . Scrap Searched 4 | . . 4 Spaces Dug . | . . . Terrain Destroyed 54 | . 54 . Melee . | . . . Projectile . | . . . AOE 54 | . 54 . Terrain Rammed . | . . . Walls Destroyed . | . . . Machines Disabled . | . . . Actions | -11 -10 -10 --------- Run | Yrd Mat Sub Total 1650 | 172 1237 241 Wait 97 | . 87 10 Move 1378 | 142 1029 207 Hop . | . . . Pick Up 29 | 5 16 8 Fast Attach 13 | 7 4 2 Attach 3 | . 2 1 Detach 1 | . 1 . Swap 12 | . 11 1 Drop 18 | . 9 9 Fire 99 | 18 78 3 Melee . | . . . Ram . | . . . Kick . | . . . Crush . | . . . Escape Stasis . | . . . Rewire . | . . . Trap . | . . . Miscellaneous . | . . . Route ------- -11/Scrapyard -10/Materials (discovered 5 exits: *Mat x3 / *Min / *Sub) -10/Subcaves History --------- Turn | Location | Event 2 | -11/Scrapyard | Met Revision 17 61 | -11/Scrapyard | Discovered new exit (range 8) 229 | -11/Scrapyard | Entered Materials 319 | -10/Materials | Build established: Mutant 337 | -10/Materials | Discovered new exit (range 16) 462 | -10/Materials | Lost 4 parts (1p1n2w) 743 | -10/Materials | Build established: Scavenger-Mutant 814 | -10/Materials | Discovered new exit (range 7) 1194 | -10/Materials | Discovered new exit (range 16) 1447 | -10/Materials | Discovered new exit (range 12) 1503 | -10/Materials | Identified exit to Materials 1610 | -10/Materials | Identified exit to Mines 2065 | -10/Materials | Discovered new exit (range 8) 2075 | -10/Materials | Identified exit to Subcaves 2183 | -10/Materials | Repaired Aluminum Leg 2268 | -10/Materials | Entered Subcaves 2337 | -10/Subcaves | Core integrity fell below 50% 2346 | -10/Subcaves | Ambushed by swarm of Subdwellers 2351 | -10/Subcaves | Core integrity fell below 20% 2607 | -10/Subcaves | Disturbed a concealed Subdweller 2707 | -10/Subcaves | Destroyed by ZV-JPH(R) with Subdweller Laser Last Messages --------------- 02630_ Acquired 4 matter. 02636_ Searching scrap... 02636_ Found Sub. Optics. 02636_ Found Shrapnel Trap. 02636_ Found 31 Matter. 02641_ Searching scrap... 02641_ Found Sub. Monowheel. 02641_ Found 70 Matter. 02643_ Searching scrap... 02643_ Found Battle Rifle. 02643_ Found Shrapnel Trap. 02643_ Found 62 Matter. 02647_ Dropped Sml. Laser. 02647_ Sml. Laser crushed and broken. 02648_ Acquired Battle Rifle. 02658_ Searching scrap... 02658_ Found Battle Rifle. 02658_ Found Shrapnel Trap. 02658_ Found 69 Matter. [Achievement: First Step to Greatness] Map ----- +----------------------------------------------------+ | ???????????????# #???# #??????? | | ???????????????# #????# #??????? | | ???????????????# ###### ##??????? | | ???????????##### ## #???????? | | ??????????##!## ###???????? | | ??????????#%&%!#" ##?????????? | | ??????????##=*!=%%& ##??????????? | | ??????????# &#&#=[ ## #???????????? | | ??????????##%### #####???????????? | | ???????????###?## ##?????????????? | | ????????????????# ###???????????? | | ????????????????## #???????????? | | ?????????????????## #???????????? | | ??????????????????## ## #???????????? | | ???????????????????## ## #??????????? | | ????????????????????## ## #??????????? | | ?????????????????????## ## ##????????? | | ?????????????????????## #? ##???????? | | ???????????????##???## ## ##??????? | | ??????????????## ##?# #??????? | | ??????????????# #?# #??????? | | ??????????????# #?# ## ##??????? | | ??????????????# ### ## #???????? | | ???????????????# #???????? | | ???????????????##h #???????? | | ????????????????#@## ### #???????? | | ????????????????# # ##??### #???????? | | ????????????????# ##??????? ##???????? | | ????????????????## #?????????#????????? | | ?????????????????## #??????????????????? | | ??????????????????## ?????????????????? | | ???????????????????" #????????????????? | | ???????????????????"" #???????????????? | | ??????????????????? "" #???????????????? | | ???????????????????# " R#???????????????? | | ????????????????????""" " ???????????????? | | ??????????????????????"""" ??????????????? | | ???????????????????????##?"??????????????? | | ?????????????????????????????????????????? | | ?????????????????????????????????????????? | | ?????????????????????????????????????????? | | ?????????????????????????????????????????? | | ?????????????????????????????????????????? | | ?????????????????????????????????????????? | | ?????????????????????????????????????????? | | ?????????????????????????????????????????? | | ?????????????????????????????????????????? | | ?????????????????????????????????????????? | | ?????????????????????????????????????????? | | ?????????????????????????????????????????? | +----------------------------------------------------+ Best States ------------- Heat Dissipation 25 Energy Generation 18 Energy Capacity 250 Matter Stores 300 Matter Capacity 300 Sight Range 16 Terrain Scan Range 16 Terrain Scan Density 10 Armor Coverage 150 Evasion (%) 55 Item Schematics ----------------- None Robot Schematics ------------------ None Fabricated ------------ Nothing Alien Tech Used ----------------- None Achievements -------------- First Step to Greatness Challenges ------------ None Game ------ Seed DataExplosiveGravjet Manual? 0 Play Time 00:41:18 Cumulative 6.8 hours Start 2024.09.05 @ 20:26:22 End 2024.09.05 @ 21:58:16 Sessions 3 Manual Loads 0 Difficulty Rogue Special Mode None Game No. 2 Rogue 2 Adventurer 0 Explorer 0 Win Type - Total 1 Types 1/0/0/0/0/0/0/0/0 Lore% 6 Gallery% 6 Achievement% 14 Wizard Run 0 Options --------- Layout 2 ASCII 0 Keyboard 0 Movement Vi Keybinds 0 Fullscreen 1 Font 18/SmallcapsGlow Map View 50x49 Zoom Use 0% Tactical HUD 1 Map Filters NONE Filters NONE Steam 0 RUN: 4733901e-1773-4a99-9608-1345c015845e